lending/lending_fUSD_20250829
["ID","MTS","AMOUNT","RATE_DAILY","PERIOD"]
[381937282,1756429846459,-2500.0,0.000329,7]
[381937284,1756429846468,-150.0,0.00032934,120]
[381937286,1756429846478,-150.0,0.00032941,120]
[381937288,1756429846488,-2500.0,0.00032951,7]
[381937290,1756429846498,-15603.34033791,0.00033,7]
[381937292,1756429846507,-28472.46041633,0.00033,7]
[381937294,1756429846517,-204.0,0.00033,120]
[381937296,1756429846526,-879.73,0.00033,14]
[381937298,1756429846536,-181.0,0.00033,30]
[381937300,1756429846545,-844.63891918,0.00033,30]
[381937302,1756429846555,-453049.34271,0.00033,10]
[381937305,1756429846564,-160.0,0.00033,30]
[381937307,1756429846574,-844.93374113,0.00033,10]
[381937309,1756429846584,-538.155677,0.00033,14]
[381937311,1756429846593,-1657.0,0.0003304,2]
[381937313,1756429846603,-223.56,0.00033165,2]
[381937315,1756429846612,-2878.76991404,0.00033362,2]
[381937317,1756429846622,-5800.0,0.00033362,2]
[381937319,1756429846632,-4265.51918925,0.00033363,5]
[381937321,1756429846641,-1657.0,0.0003338,2]
[381937323,1756429846650,-1045.78,0.00033424,120]
[381937325,1756429846660,-332.0,0.00033479,2]
[381937327,1756429846670,-597.89195262,0.00033525,31]
[381937329,1756429846679,-500.0,0.00033559,2]
[381937331,1756429846689,-1500.0,0.00033559,2]
[381937333,1756429846699,-402.0,0.00033625,30]
[381937335,1756429846708,-488.0,0.0003366,2]
[381937337,1756429846717,-1657.0,0.00033721,2]
[381937339,1756429846727,-150.0,0.00033779,120]
[381937341,1756429846737,-7397.58767534,0.00033874,21]
[381937343,1756429846746,-207.0,0.0003389,2]
[381937345,1756429846755,-207.0,0.0003389,30]
[381937347,1756429846765,-500.0,0.00033939,60]
[381937349,1756429846774,-3293.80674855,0.00034,4]
[381937351,1756429846784,-200.0,0.00034,30]
[381937353,1756429846793,-1657.0,0.00034062,2]
[381937355,1756429846803,-551.53287561,0.00034062,2]
[381937357,1756429846813,-29253.27,0.000341,2]
[381937359,1756429846823,-34794.23,0.000341,14]
[381937361,1756429846832,-150.0,0.00034156,120]
[381937363,1756429846842,-150.0,0.0003419,120]
[381937365,1756429846851,-163.84624933,0.000343,2]
[381937367,1756429846861,-253.89096968,0.00034318,68]
[381937370,1756429846872,-1000.0,0.00034363,120]
[381937372,1756429846881,-844.9,0.00034363,120]
[381937374,1756429846892,-150.0,0.00034363,30]
[381937376,1756429846902,-1000.0,0.00034363,30]
[381937378,1756429846911,-467.0,0.00034363,120]
[381937380,1756429846921,-1594.18463,0.00034363,10]
[381937382,1756429846931,-8056.41103046,0.00034363,7]
[381937384,1756429846941,-3770.34160446,0.00034363,7]
[381937386,1756429846950,-2297.52864173,0.00034363,10]
[381937388,1756429846959,-2323.41375946,0.00034363,10]
[381937390,1756429846968,-3763.38234957,0.00034363,7]
[381937392,1756429846978,-4787.30061649,0.00034363,4]
[381937394,1756429846988,-19225.71890704,0.00034363,5]
[381937396,1756429846998,-25792.78672285,0.00034363,7]
[381937398,1756429847007,-4977.93247396,0.00034363,10]
[381937400,1756429847016,-513.17769462,0.00034363,75]
[381937402,1756429847026,-6861.44326726,0.00034363,4]
[381937404,1756429847036,-5263.61053478,0.00034363,4]
[381937406,1756429847046,-25081.27026249,0.00034363,5]
[381937408,1756429847055,-2353.26545068,0.00034363,7]
[381937410,1756429847064,-1342.13589448,0.00034363,30]
[381937412,1756429847073,-2327.0,0.00034363,60]
[381937414,1756429847083,-1091.64768599,0.00034363,30]
[381937416,1756429847091,-212.2,0.00034363,30]
[381937418,1756429847100,-12033.17424612,0.00034363,15]
[381937420,1756429847110,-11012.94617346,0.00034363,15]
[381937422,1756429847121,-4983.27108017,0.00034363,20]
[381937424,1756429847130,-4820.92557866,0.00034363,15]
[381937426,1756429847139,-193.0,0.00034363,120]
[381937428,1756429847148,-85003.72290373,0.00034363,120]
[381937430,1756429847158,-11450.86715768,0.00034363,2]
[381937432,1756429847167,-5000.0,0.00034363,14]
[381937434,1756429847176,-164.3,0.00034363,2]
[381937436,1756429847186,-5100.0,0.00034363,34]
[381937438,1756429847195,-21642.839542,0.00034363,10]
[381937440,1756429847206,-12548.0,0.00034363,60]
[381937442,1756429847215,-12548.0,0.00034363,60]
[381937444,1756429847224,-12550.0,0.00034363,60]
[381937446,1756429847233,-12548.0,0.00034363,60]
[381937449,1756429847243,-6359.55591076,0.00034363,60]
[381937451,1756429847253,-1069.8895934,0.00034363,120]
[381937453,1756429847263,-9293.35522678,0.00034363,7]
[381937455,1756429847272,-826.0,0.00034363,120]
[381937457,1756429847282,-115177.234544,0.00034363,30]
[381937459,1756429847292,-1000.0,0.00034363,31]
[381937461,1756429847302,-1000.0,0.00034363,45]
[381937463,1756429847311,-1000.0,0.00034363,120]
[381937465,1756429847320,-6772.60054738,0.00034363,120]
[381937467,1756429847329,-394.0,0.00034363,120]
[381937469,1756429847339,-1095.0,0.00034363,120]
[381937471,1756429847349,-2503.84575227,0.00034363,120]
[381937473,1756429847358,-1759.71002962,0.00034363,120]
[381937475,1756429847368,-421.858184,0.00034363,120]
[381937477,1756429847377,-224.6,0.000344,30]
[381937479,1756429847390,-1657.0,0.00034402,2]
[381937481,1756429847399,-879.73,0.000346,14]
[381937483,1756429847408,-302.83,0.00034634,2]
[381937485,1756429847417,-1657.0,0.00034743,2]
[381937487,1756429847428,-150.0,0.00034774,120]
[381937489,1756429847437,-500.0,0.00034821,60]
[381937491,1756429847447,-474.0,0.0003484,2]
[381937493,1756429847457,-7397.58767534,0.00034871,23]
[381937495,1756429847467,-844.63891918,0.00035,120]
[381937497,1756429847477,-212.82,0.00035,2]
[381937499,1756429847487,-497.00603771,0.00035,120]
[381937501,1756429847496,-150.0,0.00035,60]
[381937503,1756429847505,-4000.0,0.00035,4]
[381937505,1756429847515,-1657.0,0.00035083,2]
[381937507,1756429847524,-177.84480109,0.00035122,15]
[381937509,1756429847533,-264.665,0.00035169,2]
[381937511,1756429847543,-4156.0,0.00035169,2]
[381937513,1756429847552,-2074.799,0.00035169,2]
[381937515,1756429847562,-718.0,0.00035169,2]
[381937517,1756429847571,-403.0,0.00035306,30]
[381937519,1756429847580,-207.0,0.000354,2]
[381937521,1756429847590,-207.0,0.000354,30]
[381937523,1756429847599,-154.74119709,0.00035514,30]
[381937525,1756429847609,-150.0,0.00035525,120]
[381937527,1756429847619,-152.21045619,0.00035596,30]
[381937529,1756429847629,-1045.78,0.00035616,120]
[381937531,1756429847638,-168.8956986,0.00035616,2]
[381937533,1756429847648,-723.75570434,0.00035703,60]
[381937535,1756429847658,-879.73,0.000358,14]
[381937537,1756429847667,-7397.58767534,0.00035868,25]
[381937539,1756429847677,-230.12341,0.00035888,30]
[381937541,1756429847686,-420.25,0.00036,2]
[381937543,1756429847695,-7000.0,0.00036,7]
[381937545,1756429847704,-879.73,0.00036,14]
[381937547,1756429847714,-460.0,0.0003602,2]
[381937549,1756429847723,-230.12341,0.00036088,30]
[381937551,1756429847732,-150.0,0.00036194,120]
[381937553,1756429847742,-2492.81,0.000362,14]
[381937555,1756429847752,-152.0,0.00036227,4]
[381937557,1756429847762,-150.0,0.00036245,120]
[381937559,1756429847771,-230.12341,0.00036288,30]
[381937561,1756429847781,-150.0,0.00036331,120]
[381937563,1756429847792,-500.0,0.00036366,5]
[381937566,1756429847803,-1329.44524274,0.00036366,5]
[381937568,1756429847812,-1599.18,0.00036427,2]
[381937570,1756429847821,-230.12341,0.00036488,30]
[381937572,1756429847830,-150.0,0.00036517,120]
[381937574,1756429847840,-230.12341,0.00036688,30]
[381937576,1756429847849,-150.0,0.00036758,120]
[381937578,1756429847858,-810.07148166,0.0003684,2]
[381937580,1756429847870,-7397.58767534,0.00036865,27]
[381937582,1756429847880,-191.9284487,0.0003688,30]
[381937584,1756429847889,-767.078,0.00036888,7]
[381937586,1756429847899,-230.12341,0.00036888,30]
[381937588,1756429847908,-207.0,0.0003691,2]
[381937590,1756429847917,-207.0,0.0003691,30]
[381937592,1756429847927,-3737.3737,0.00037,7]
[381937594,1756429847936,-5261.0,0.00037,117]
[381937596,1756429847945,-230.12341,0.00037088,30]
[381937598,1756429847954,-150.0,0.00037107,120]
[381937600,1756429847964,-1184.83,0.00037112,2]
[381937602,1756429847974,-180.87,0.00037112,2]
[381937604,1756429847983,-682.67,0.00037112,2]
[381937606,1756429847993,-518.33,0.00037112,2]
[381937608,1756429848002,-174.94,0.00037112,2]
[381937610,1756429848012,-155.12985476,0.000372,120]
[381937612,1756429848021,-155.12985476,0.000372,120]
[381937614,1756429848030,-446.0,0.0003721,2]
[381937616,1756429848040,-230.12341,0.00037288,30]
[381937619,1756429848050,-227.80941274,0.00037302,2]
[381937620,1756429848060,-326.92475373,0.00037302,2]
[381937622,1756429848069,-3796.57682967,0.00037302,2]
[381937624,1756429848079,-150.0,0.00037333,120]
[381937627,1756429848090,-280.0,0.000374,30]
[381937628,1756429848099,-150.0,0.00037421,120]
[381937630,1756429848108,-150.0,0.00037445,120]
[381937632,1756429848119,-230.12341,0.00037488,30]
[381937634,1756429848128,-150.0,0.0003753,120]
[381937636,1756429848138,-150.0,0.00037617,120]
[381937638,1756429848149,-402.0,0.0003766,30]
[381937641,1756429848159,-230.12341,0.00037688,30]
[381937643,1756429848169,-511.0,0.0003771,13]
[381937644,1756429848181,-348.11481114,0.00037753,120]
[381937647,1756429848191,-150.0,0.00037767,120]
[381937649,1756429848200,-1045.78,0.00037808,120]
[381937651,1756429848211,-7397.58767534,0.00037863,30]
[381937653,1756429848221,-230.12341,0.00037888,30]
[381937655,1756429848230,-151.0,0.00038,120]
[381937657,1756429848240,-158.0,0.00038,120]
[381937658,1756429848249,-3838.3838,0.00038,8]
[381937661,1756429848260,-900.0,0.00038,39]
[381937663,1756429848269,-230.12341,0.00038088,30]
[381937665,1756429848280,-1148.243,0.00038169,2]
[381937667,1756429848290,-718.0,0.00038169,2]
[381937669,1756429848299,-5517.33657378,0.000382,7]
[381937671,1756429848309,-150.0,0.00038215,120]
[381937672,1756429848319,-154.74119709,0.00038246,30]
[381937673,1756429848328,-1086.0,0.00038264,5]
[381937674,1756429848337,-230.12341,0.00038288,30]
[381937675,1756429848351,-152.21045619,0.00038334,30]
[381937676,1756429848361,-150.0,0.00038353,120]
[381937677,1756429848371,-173.559573,0.00038356,7]
[381937678,1756429848382,-156.233097,0.00038356,7]
[381937679,1756429848394,-400.0,0.00038356,7]
[381937680,1756429848403,-400.0,0.00038356,2]
[381937681,1756429848412,-400.0,0.00038356,7]
[381937683,1756429848423,-400.0,0.00038356,2]
[381937685,1756429848433,-400.0,0.00038356,7]
[381937687,1756429848443,-467.9,0.00038356,7]
[381937689,1756429848454,-400.0,0.00038356,7]
[381937691,1756429848464,-400.0,0.00038356,7]
[381937693,1756429848473,-400.0,0.00038356,7]
[381937695,1756429848482,-467.88,0.00038356,7]
[381937697,1756429848492,-400.0,0.00038356,7]
[381937699,1756429848502,-400.0,0.00038356,7]
[381937700,1756429848512,-400.0,0.00038356,7]
[381937702,1756429848522,-486.65,0.00038356,7]
[381937705,1756429848533,-525.15,0.00038356,7]
[381937707,1756429848543,-400.0,0.00038356,7]
[381937709,1756429848553,-400.0,0.00038356,7]
[381937711,1756429848565,-400.0,0.00038356,7]
[381937713,1756429848574,-400.0,0.00038356,7]
[381937715,1756429848584,-180.6,0.00038356,7]
[381937717,1756429848593,-400.0,0.00038356,7]
[381937719,1756429848602,-400.0,0.00038356,7]
[381937721,1756429848612,-400.0,0.00038356,7]
[381937723,1756429848622,-400.0,0.00038356,7]
[381937729,1756429848668,-400.0,0.00038356,7]
[381937730,1756429848677,-400.0,0.00038356,7]
[381937732,1756429848686,-400.0,0.00038356,7]
[381937734,1756429848695,-184.25,0.00038356,7]
[381937736,1756429848705,-400.0,0.00038356,7]
[381937738,1756429848714,-400.0,0.00038356,7]
[381937740,1756429848723,-400.0,0.00038356,7]
[381937742,1756429848732,-400.0,0.00038356,7]
[381937744,1756429848741,-400.0,0.00038356,7]
[381937746,1756429848751,-400.0,0.00038356,7]
[381937748,1756429848760,-400.0,0.00038356,7]
[381937750,1756429848769,-511.31976472,0.00038356,7]
[381937752,1756429848778,-400.0,0.00038356,7]
[381937754,1756429848787,-400.0,0.00038356,7]
[381937756,1756429848797,-400.0,0.00038356,7]
[381937758,1756429848806,-400.0,0.00038356,7]
[381937760,1756429848816,-400.0,0.00038356,7]
[381937762,1756429848825,-400.0,0.00038356,7]
[381937764,1756429848834,-400.0,0.00038356,7]
[381937766,1756429848845,-400.0,0.00038356,7]
[381937768,1756429848854,-242.76,0.00038356,7]
[381937770,1756429848864,-400.0,0.00038356,7]
[381937772,1756429848874,-404.03254964,0.00038356,7]
[381937774,1756429848883,-153.36776358,0.00038356,7]
[381937776,1756429848893,-400.0,0.00038356,7]
[381937777,1756429848903,-516.44,0.00038356,7]
[381937779,1756429848912,-454.18,0.00038356,7]
[381937781,1756429848921,-400.0,0.00038356,7]
[381937783,1756429848931,-400.0,0.00038356,7]
[381937785,1756429848941,-492.72,0.00038356,7]
[381937787,1756429848950,-400.0,0.00038356,7]
[381937789,1756429848961,-400.0,0.00038356,7]
[381937791,1756429848973,-400.0,0.00038356,7]
[381937794,1756429848982,-400.0,0.00038356,7]
[381937796,1756429848992,-400.0,0.00038356,7]
[381937798,1756429849003,-400.0,0.00038356,7]
[381937800,1756429849012,-400.0,0.00038356,7]
[381937802,1756429849022,-400.0,0.00038356,7]
[381937804,1756429849032,-400.0,0.00038356,7]
[381937806,1756429849041,-400.0,0.00038356,7]
[381937807,1756429849051,-400.0,0.00038356,7]
[381937809,1756429849061,-400.0,0.00038356,7]
[381937811,1756429849071,-544.90266741,0.00038356,7]
[381937813,1756429849080,-193.42993014,0.00038356,7]
[381937815,1756429849090,-400.0,0.00038356,7]
[381937817,1756429849099,-400.0,0.00038356,7]
[381937819,1756429849111,-400.0,0.00038356,7]
[381937821,1756429849121,-1354.33,0.00038356,2]
[381937823,1756429849132,-400.0,0.00038356,7]
[381937825,1756429849141,-400.0,0.00038356,7]
[381937827,1756429849151,-400.0,0.00038356,7]
[381937829,1756429849160,-400.0,0.00038356,7]
[381937831,1756429849169,-400.0,0.00038356,7]
[381937833,1756429849179,-302.8874995,0.00038356,7]
[381937836,1756429849191,-400.0,0.00038356,7]
[381937838,1756429849201,-668.84,0.00038356,7]
[381937840,1756429849210,-529.93755115,0.00038356,7]
[381937842,1756429849219,-304.50425541,0.00038356,7]
[381937844,1756429849229,-400.0,0.00038356,7]
[381937846,1756429849238,-400.0,0.00038356,7]
[381937847,1756429849248,-400.0,0.00038356,7]
[381937849,1756429849258,-400.0,0.00038356,7]
[381937851,1756429849267,-461.79985892,0.00038356,7]
[381937853,1756429849276,-400.0,0.00038356,7]
[381937855,1756429849286,-444.73599818,0.00038356,7]
[381937857,1756429849296,-400.0,0.00038356,7]
[381937859,1756429849306,-400.0,0.00038356,7]
[381937861,1756429849315,-350.31732396,0.00038356,7]
[381937863,1756429849324,-465.82,0.00038356,7]
[381937865,1756429849334,-500.0,0.00038356,7]
[381937867,1756429849343,-500.0,0.00038356,7]
[381937869,1756429849352,-500.0,0.00038356,7]
[381937871,1756429849362,-500.0,0.00038356,7]
[381937873,1756429849372,-500.0,0.00038356,7]
[381937876,1756429849382,-400.0,0.00038356,7]
[381937877,1756429849395,-500.0,0.00038356,7]
[381937879,1756429849404,-500.0,0.00038356,7]
[381937881,1756429849413,-500.0,0.00038356,7]
[381937883,1756429849422,-500.0,0.00038356,7]
[381937885,1756429849433,-500.0,0.00038356,7]
[381937887,1756429849442,-500.0,0.00038356,7]
[381937889,1756429849451,-500.0,0.00038356,7]
[381937891,1756429849461,-500.0,0.00038356,7]
[381937893,1756429849471,-500.0,0.00038356,7]
[381937895,1756429849480,-500.0,0.00038356,7]
[381937897,1756429849489,-231.96287919,0.00038356,7]
[381937899,1756429849498,-400.0,0.00038356,7]
[381937901,1756429849507,-400.0,0.00038356,7]
[381937903,1756429849516,-400.0,0.00038356,7]
[381937905,1756429849526,-400.0,0.00038356,7]
[381937907,1756429849535,-400.0,0.00038356,7]
[381937909,1756429849544,-400.0,0.00038356,7]
[381937911,1756429849553,-406.71,0.00038356,7]
[381937913,1756429849562,-400.0,0.00038356,7]
[381937915,1756429849572,-400.0,0.00038356,7]
[381937917,1756429849580,-400.0,0.00038356,7]
[381937919,1756429849589,-400.0,0.00038356,7]
[381937921,1756429849599,-400.0,0.00038356,7]
[381937923,1756429849607,-400.0,0.00038356,7]
[381937925,1756429849616,-400.0,0.00038356,7]
[381937927,1756429849625,-400.0,0.00038356,7]
[381937929,1756429849633,-400.0,0.00038356,7]
[381937931,1756429849643,-400.0,0.00038356,7]
[381937933,1756429849652,-401.81793772,0.00038356,7]
[381937935,1756429849661,-416.32,0.00038356,7]
[381937937,1756429849671,-400.0,0.00038356,7]
[381937939,1756429849679,-400.0,0.00038356,7]
[381937941,1756429849689,-218.37137235,0.00038356,7]
[381937943,1756429849698,-400.0,0.00038356,7]
[381937945,1756429849707,-400.0,0.00038356,7]
[381937947,1756429849716,-400.0,0.00038356,7]
[381937949,1756429849725,-400.0,0.00038356,7]
[381937951,1756429849734,-400.0,0.00038356,7]
[381937953,1756429849743,-370.52657866,0.00038356,7]
[381937955,1756429849753,-336.83,0.00038356,7]
[381937957,1756429849762,-400.0,0.00038356,7]
[381937959,1756429849771,-400.0,0.00038356,7]
[381937961,1756429849780,-400.0,0.00038356,7]
[381937963,1756429849789,-400.0,0.00038356,7]
[381937965,1756429849798,-400.0,0.00038356,7]
[381937967,1756429849807,-400.0,0.00038356,7]
[381937969,1756429849815,-400.0,0.00038356,7]
[381937971,1756429849825,-361.43319044,0.00038356,7]
[381937973,1756429849834,-400.0,0.00038356,7]
[381937975,1756429849843,-400.0,0.00038356,7]
[381937977,1756429849853,-400.0,0.00038356,7]
[381937979,1756429849862,-400.0,0.00038356,7]
[381937981,1756429849871,-400.0,0.00038356,7]
[381937983,1756429849880,-400.0,0.00038356,7]
[381937985,1756429849889,-400.0,0.00038356,7]
[381937987,1756429849899,-400.0,0.00038356,7]
[381937989,1756429849907,-400.0,0.00038356,7]
[381937991,1756429849916,-400.0,0.00038356,7]
[381937993,1756429849926,-400.0,0.00038356,7]
[381937995,1756429849935,-400.0,0.00038356,7]
[381937997,1756429849944,-400.0,0.00038356,7]
[381938000,1756429849955,-400.0,0.00038356,7]
[381938024,1756429850171,-400.0,0.00038356,7]
[381938026,1756429850181,-400.0,0.00038356,7]
[381938028,1756429850190,-400.0,0.00038356,7]
[381938030,1756429850200,-400.0,0.00038356,7]
[381938032,1756429850209,-400.0,0.00038356,7]
[381938034,1756429850219,-400.0,0.00038356,7]
[381938036,1756429850228,-400.0,0.00038356,7]
[381938038,1756429850237,-400.0,0.00038356,7]
[381938040,1756429850246,-400.0,0.00038356,7]
[381938042,1756429850255,-412.12,0.00038356,7]
[381938044,1756429850264,-251.88511726,0.00038356,7]
[381938046,1756429850273,-400.0,0.00038356,7]
[381938048,1756429850282,-400.0,0.00038356,7]
[381938050,1756429850292,-400.0,0.00038356,7]
[381938052,1756429850301,-400.0,0.00038356,7]
[381938054,1756429850310,-500.0,0.00038356,2]
[381938056,1756429850319,-400.0,0.00038356,7]
[381938058,1756429850328,-400.0,0.00038356,7]
[381938060,1756429850337,-400.0,0.00038356,7]
[381938062,1756429850346,-400.0,0.00038356,7]
[381938064,1756429850356,-400.0,0.00038356,7]
[381938066,1756429850365,-388.06499729,0.00038356,7]
[381938068,1756429850374,-400.0,0.00038356,7]
[381938070,1756429850385,-400.0,0.00038356,7]
[381938072,1756429850396,-515.93,0.00038356,7]
[381938074,1756429850405,-400.0,0.00038356,7]
[381938076,1756429850415,-400.0,0.00038356,7]
[381938078,1756429850424,-400.0,0.00038356,7]
[381938080,1756429850433,-400.0,0.00038356,7]
[381938082,1756429850442,-400.0,0.00038356,7]
[381938084,1756429850451,-400.0,0.00038356,7]
[381938086,1756429850462,-400.0,0.00038356,7]
[381938088,1756429850471,-400.0,0.00038356,7]
[381938090,1756429850480,-400.0,0.00038356,7]
[381938092,1756429850489,-400.0,0.00038356,7]
[381938094,1756429850498,-400.0,0.00038356,7]
[381938096,1756429850507,-400.0,0.00038356,7]
[381938098,1756429850516,-400.0,0.00038356,7]
[381938100,1756429850525,-400.0,0.00038356,7]
[381938102,1756429850534,-400.0,0.00038356,7]
[381938104,1756429850543,-400.0,0.00038356,7]
[381938106,1756429850552,-400.0,0.00038356,7]
[381938108,1756429850561,-400.0,0.00038356,2]
[381938110,1756429850571,-400.0,0.00038356,7]
[381938112,1756429850580,-400.0,0.00038356,7]
[381938114,1756429850589,-545.34,0.00038356,7]
[381938116,1756429850599,-313.54,0.00038356,7]
[381938117,1756429850607,-400.0,0.00038356,7]
[381938118,1756429850616,-400.0,0.00038356,2]
[381938119,1756429850626,-400.0,0.00038356,7]
[381938120,1756429850634,-467.27,0.00038356,7]
[381938121,1756429850643,-400.0,0.00038356,7]
[381938122,1756429850653,-400.0,0.00038356,7]
[381938123,1756429850662,-400.0,0.00038356,7]
[381938124,1756429850671,-400.0,0.00038356,7]
[381938125,1756429850680,-400.0,0.00038356,7]
[381938127,1756429850690,-400.0,0.00038356,7]
[381938129,1756429850699,-400.0,0.00038356,7]
[381938131,1756429850709,-402.17179582,0.00038356,7]
[381938133,1756429850718,-400.0,0.00038356,7]
[381938135,1756429850727,-400.0,0.00038356,7]
[381938137,1756429850737,-400.0,0.00038356,7]
[381938139,1756429850746,-400.0,0.00038356,7]
[381938141,1756429850755,-400.0,0.00038356,7]
[381938143,1756429850765,-446.11,0.00038356,7]
[381938145,1756429850775,-406.41759996,0.00038356,7]
[381938147,1756429850786,-342.95586399,0.00038356,7]
[381938149,1756429850795,-502.12,0.00038356,7]
[381938151,1756429850804,-400.0,0.00038356,7]
[381938153,1756429850814,-406.7509348,0.00038356,7]
[381938155,1756429850822,-400.0,0.00038356,7]
[381938157,1756429850832,-400.0,0.00038356,7]
[381938159,1756429850841,-400.0,0.00038356,7]
[381938161,1756429850850,-400.0,0.00038356,7]
[381938163,1756429850859,-400.0,0.00038356,7]
[381938165,1756429850868,-400.0,0.00038356,7]
[381938167,1756429850878,-400.0,0.00038356,7]
[381938169,1756429850887,-400.0,0.00038356,7]
[381938171,1756429850897,-400.0,0.00038356,7]
[381938173,1756429850905,-355.0,0.00038356,7]
[381938175,1756429850915,-400.0,0.00038356,7]
[381938177,1756429850924,-400.0,0.00038356,7]
[381938179,1756429850934,-400.0,0.00038356,7]
[381938182,1756429850944,-400.0,0.00038356,7]
[381938184,1756429850954,-400.0,0.00038356,7]
[381938186,1756429850963,-402.6435556,0.00038356,7]
[381938188,1756429850972,-400.0,0.00038356,7]
[381938190,1756429850982,-400.0,0.00038356,7]
[381938192,1756429850991,-472.86,0.00038356,7]
[381938194,1756429851002,-485.04,0.00038356,7]
[381938196,1756429851012,-400.0,0.00038356,7]
[381938198,1756429851021,-236.14,0.00038356,7]
[381938200,1756429851031,-400.0,0.00038356,7]
[381938202,1756429851040,-400.0,0.00038356,7]
[381938204,1756429851050,-400.0,0.00038356,7]
[381938206,1756429851059,-400.0,0.00038356,7]
[381938208,1756429851068,-400.0,0.00038356,7]
[381938210,1756429851077,-400.0,0.00038356,7]
[381938212,1756429851087,-400.0,0.00038356,7]
[381938214,1756429851096,-400.0,0.00038356,7]
[381938216,1756429851105,-400.0,0.00038356,7]
[381938218,1756429851115,-325.26,0.00038356,7]
[381938220,1756429851125,-400.0,0.00038356,7]
[381938222,1756429851134,-400.0,0.00038356,7]
[381938224,1756429851148,-400.0,0.00038356,7]
[381938226,1756429851157,-400.0,0.00038356,7]
[381938228,1756429851168,-400.0,0.00038356,7]
[381938231,1756429851177,-400.0,0.00038356,7]
[381938233,1756429851188,-400.0,0.00038356,7]
[381938235,1756429851197,-400.0,0.00038356,7]
[381938237,1756429851207,-485.24,0.00038356,7]
[381938239,1756429851216,-400.0,0.00038356,7]
[381938241,1756429851226,-167.73875085,0.00038356,7]
[381938243,1756429851235,-400.0,0.00038356,7]
[381938245,1756429851245,-400.0,0.00038356,2]
[381938247,1756429851254,-400.0,0.00038356,7]
[381938249,1756429851263,-400.0,0.00038356,7]
[381938251,1756429851273,-400.0,0.00038356,7]
[381938253,1756429851283,-400.0,0.00038356,7]
[381938255,1756429851292,-400.0,0.00038356,7]
[381938257,1756429851302,-400.0,0.00038356,2]
[381938259,1756429851312,-426.58,0.00038356,7]
[381938261,1756429851322,-400.0,0.00038356,7]
[381938263,1756429851332,-400.0,0.00038356,7]
[381938265,1756429851342,-400.0,0.00038356,7]
[381938267,1756429851351,-400.0,0.00038356,2]
[381938269,1756429851361,-432.0,0.0003839,2]
[381938271,1756429851371,-207.0,0.0003842,2]
[381938273,1756429851382,-207.0,0.0003842,30]
[381938276,1756429851396,-230.12341,0.00038488,30]
[381938277,1756429851406,-1552.53,0.000385,120]
[381938279,1756429851416,-803.0,0.00038519,30]
[381938282,1756429851427,-803.0,0.00038519,30]
[381938284,1756429851437,-803.0,0.00038519,30]
[381938286,1756429851446,-803.0,0.00038519,30]
[381938288,1756429851455,-803.0,0.00038519,30]
[381938290,1756429851466,-803.0,0.00038519,30]
[381938292,1756429851475,-803.0,0.00038519,30]
[381938294,1756429851484,-803.0,0.00038519,30]